Workbook

Sheet Cover
B2: 3GPP TSG-RAN WG4 Meeting #117 | J2: R4-2521037
B3: Dallas, Texas, USA, 17th Nov- 21st Nov, 2025
B5: Source: Ericsson
B6: Title: Simulation results summary for 3Tx BS Demodulation requirements
B7: Agenda: 6.12.3

Sheet Parameters
C2: Parameters for deriving performance requirements
C3: Ideal Span Threshold | D3: 2 | E3: dB
C4: Impairment Span Threshold | D4: 4 | E4: dB
B7: Notes | C7: 1. Call function DerivingPerfReq()
C8: 2. If the ruls does not apply, or fails, -100dB or less will be returned
D9: -100 | E9: Not enough input
D10: -101 | E10: Input should be pairs
D11: -102 | E11: Too large span for impairment
D12: -103 | E12: After removal iteration, not enough input

Sheet PUSCH requirement 4Rx
A1: case | B1: Tx | C1: SCS | D1: Waveform | E1: BW | F1: Mapping Type | G1: Propagation condition | H1: MCS | I1: Additional DM-RS position | J1: 38.104 req | K1: 38.141-1/2 req | L1: Samsung | N1: Nokia | P1: Ericsson | R1: SPAN | T1: AVERAGE
L2: ideal | M2: Impairment | N2: ideal | O2: Impairment | P2: ideal | Q2: Impairment | R2: Ideal | S2: Impairment | T2: Ideal | U2: Impairment
A3: 1 | B3: 3 | C3: 15kHz | D3: CP-OFDM | E3: 5MHz | F3: A | G3: TDLB100-400 | H3: 2 | I3: pos1 | J3: =DerivingPerfReq(L3:Q3) -> -100 | K3: =IF(J3>-100,J3+0.9,J3) -> -100 | L3: -1.432 | N3: -3.69 | P3: -2.71 | R3: =MAX(L3,N3,P3)-MIN(L3,N3,P3) -> 2.258 | S3: =MAX(M24,O24,Q24) -> 0 | T3: =AVERAGE(L3,N3,P3) -> -2.610666667 | U3: =AVERAGE(M3,O3,Q3) -> 
A4: 2 | F4: B | J4: =DerivingPerfReq(L4:Q4) -> -100 | K4: =IF(J4>-100,J4+0.9,J4) -> -100 | N4: -3.61 | P4: -2.59 | R4: =MAX(L4,N4,P4)-MIN(L4,N4,P4) -> 1.02 | S4: =MAX(M25,O25,Q25) -> 0 | T4: =AVERAGE(L4,N4,P4) -> -3.1 | U4: =AVERAGE(M4,O4,Q4) -> 
A6: 3 | B6: 3 | C6: 15kHz | D6: CP-OFDM | E6: 5MHz | F6: A | G6: TDLC300-100 | H6: 16 | I6: pos1 | J6: =DerivingPerfReq(L6:Q6) -> -100 | K6: =IF(J6>-100,J6+0.9,J6) -> -100 | L6: 13.594 | N6: 8.45 | P6: 12.78 | R6: 5.144 | S6: =MAX(M27,O27,Q27) -> 0 | T6: 11.608
A7: 4 | F7: B | J7: =DerivingPerfReq(L7:Q7) -> -100 | K7: =IF(J7>-100,J7+0.9,J7) -> -100 | N7: 8.7 | P7: 12.86 | R7: 4.16 | S7: =MAX(M28,O28,Q28) -> 0 | T7: 10.78
A9: 5 | B9: 3 | C9: 15kHz | D9: CP-OFDM | E9: 5MHz | F9: A | G9: TDLA30-10 | H9: 20 | I9: pos1 | J9: =DerivingPerfReq(L9:Q9) -> -100 | K9: =IF(J9>-100,J9+0.9,J9) -> -100 | L9: 15.016 | N9: 12.07 | P9: 14.29 | R9: 2.946 | S9: =MAX(M30,O30,Q30) -> 0 | T9: 13.792
A10: 6 | F10: B | J10: =DerivingPerfReq(L10:Q10) -> -100 | K10: =IF(J10>-100,J10+0.9,J10) -> -100 | N10: 12.12 | P10: 14.28 | R10: 2.16 | S10: =MAX(M31,O31,Q31) -> 0 | T10: 13.2
A12: 7 | B12: 3 | C12: 15kHz | D12: CP-OFDM | E12: 50MHz | F12: A | G12: TDLB100-400 | H12: 2 | I12: pos1 | J12: =DerivingPerfReq(L12:Q12) -> -100 | K12: =IF(J12>-100,J12+0.9,J12) -> -100 | L12: -1.521 | N12: -3.65 | P12: -2.73 | R12: 2.129 | S12: =MAX(M33,O33,Q33) -> 0 | T12: -2.633666667
A13: 8 | F13: B | J13: =DerivingPerfReq(L13:Q13) -> -100 | K13: =IF(J13>-100,J13+0.9,J13) -> -100 | N13: -3.55 | P13: -2.54 | R13: 1.01 | S13: =MAX(M34,O34,Q34) -> 0 | T13: -3.045
A15: 9 | B15: 3 | C15: 15kHz | D15: CP-OFDM | E15: 50MHz | F15: A | G15: TDLC300-100 | H15: 16 | I15: pos1 | J15: =DerivingPerfReq(L15:Q15) -> -100 | K15: =IF(J15>-100,J15+0.9,J15) -> -100 | L15: 14.7 | N15: 8.89 | P15: 13.19 | R15: 5.81 | S15: =MAX(M36,O36,Q36) -> 0 | T15: 12.26
A16: 10 | F16: B | J16: =DerivingPerfReq(L16:Q16) -> -100 | K16: =IF(J16>-100,J16+0.9,J16) -> -100 | N16: 8.91 | P16: 13.31 | R16: 4.4 | S16: =MAX(M37,O37,Q37) -> 0 | T16: 11.11
A18: 32 | F18: B | J18: =DerivingPerfReq(L18:Q18) -> -100 | R18: 0 | S18: =MAX(M39,O39,Q39) -> 0
A19: 11 | B19: 3 | C19: 15kHz | D19: CP-OFDM | E19: 50MHz | F19: A | G19: TDLA30-10 | H19: 20 | I19: pos1 | J19: =DerivingPerfReq(L19:Q19) -> -100 | K19: =IF(J19>-100,J19+0.9,J19) -> -100 | L19: 17.252 | N19: 12.91 | P19: 16.15 | R19: 4.342 | S19: =MAX(M40,O40,Q40) -> 0 | T19: 15.43733333
A20: 12 | F20: B | J20: =DerivingPerfReq(L20:Q20) -> -100 | K20: =IF(J20>-100,J20+0.9,J20) -> -100 | N20: 12.85 | P20: 16.14 | R20: 3.29 | S20: =MAX(M41,O41,Q41) -> 0 | T20: 14.495
A22: case | B22: Tx | C22: SCS | D22: Waveform | E22: BW | F22: Mapping Type | G22: Propagation condition | H22: MCS | I22: Additional DM-RS position | J22: 38.104 req | K22: 38.141-1/2 req | L22: Samsung | N22: Nokia | P22: Ericsson | R22: SPAN | T22: AVERAGE
L23: ideal | M23: Impairment | N23: ideal | O23: Impairment | P23: ideal | Q23: Impairment | R23: Ideal | S23: Impairment | T23: Ideal | U23: Impairment
A24: 1 | B24: 3 | C24: 30kHz | D24: CP-OFDM | E24: 10MHz | F24: A | G24: TDLB100-400 | H24: 2 | I24: pos1 | J24: =DerivingPerfReq(L24:Q24) -> -100 | K24: =IF(J24>-100,J24+0.9,J24) -> -100 | L24: -1.669 | P24: -2.74 | R24: =MAX(L24,N24,P24)-MIN(L24,N24,P24) -> 1.071 | S24: =MAX(M45,O45,Q45) -> 0 | T24: =AVERAGE(L24,N24,P24) -> -2.2045 | U24: =AVERAGE(M24,O24,Q24) -> 
A25: 2 | F25: B | J25: =DerivingPerfReq(L25:Q25) -> -100 | K25: =IF(J25>-100,J25+0.9,J25) -> -100 | P25: -2.72 | R25: =MAX(L25,N25,P25)-MIN(L25,N25,P25) -> 0 | S25: =MAX(M46,O46,Q46) -> 0 | T25: =AVERAGE(L25,N25,P25) -> -2.72 | U25: =AVERAGE(M25,O25,Q25) -> 
A27: 3 | B27: 3 | C27: 30kHz | D27: CP-OFDM | E27: 10MHz | F27: A | G27: TDLC300-100 | H27: 16 | I27: pos1 | J27: =DerivingPerfReq(L27:Q27) -> -100 | K27: =IF(J27>-100,J27+0.9,J27) -> -100 | L27: 13.712 | P27: 13.29 | R27: 0.422 | S27: =MAX(M48,O48,Q48) -> 0 | T27: 13.501
A28: 4 | F28: B | J28: =DerivingPerfReq(L28:Q28) -> -100 | K28: =IF(J28>-100,J28+0.9,J28) -> -100 | P28: 13.44 | R28: 0 | S28: =MAX(M49,O49,Q49) -> 0 | T28: 13.44
A30: 5 | B30: 3 | C30: 30kHz | D30: CP-OFDM | E30: 10MHz | F30: A | G30: TDLA30-10 | H30: 20 | I30: pos1 | J30: =DerivingPerfReq(L30:Q30) -> -100 | K30: =IF(J30>-100,J30+0.9,J30) -> -100 | L30: 15.09 | P30: 14.43 | R30: 0.66 | S30: =MAX(M51,O51,Q51) -> 0 | T30: 14.76
A31: 6 | F31: B | J31: =DerivingPerfReq(L31:Q31) -> -100 | K31: =IF(J31>-100,J31+0.9,J31) -> -100 | P31: 14.43 | R31: 0 | S31: =MAX(M52,O52,Q52) -> 0 | T31: 14.43
A33: 7 | B33: 3 | C33: 30kHz | D33: CP-OFDM | E33: 100MHz | F33: A | G33: TDLB100-400 | H33: 2 | I33: pos1 | J33: =DerivingPerfReq(L33:Q33) -> -100 | K33: =IF(J33>-100,J33+0.9,J33) -> -100 | L33: -1.724 | P33: -3.02 | R33: 1.296 | S33: =MAX(M64,O64,Q64) -> 0 | T33: -2.372
A34: 8 | F34: B | J34: =DerivingPerfReq(L34:Q34) -> -100 | K34: =IF(J34>-100,J34+0.9,J34) -> -100 | P34: -2.99 | R34: 0 | S34: 0 | T34: -2.99
A36: 9 | B36: 3 | C36: 30kHz | D36: CP-OFDM | E36: 100MHz | F36: A | G36: TDLC300-100 | H36: 16 | I36: pos1 | J36: =DerivingPerfReq(L36:Q36) -> -100 | K36: =IF(J36>-100,J36+0.9,J36) -> -100 | L36: 14.371 | P36: 14.25 | R36: 0.121 | S36: 0 | T36: 14.3105
A37: 10 | F37: B | J37: =DerivingPerfReq(L37:Q37) -> -100 | K37: =IF(J37>-100,J37+0.9,J37) -> -100 | P37: 14.37 | R37: 0 | S37: 0 | T37: 14.37
A39: 32 | F39: B | J39: =DerivingPerfReq(L39:Q39) -> -100 | R39: 0 | S39: 0
A40: 11 | B40: 3 | C40: 30kHz | D40: CP-OFDM | E40: 100MHz | F40: A | G40: TDLA30-10 | H40: 20 | I40: pos1 | J40: =DerivingPerfReq(L40:Q40) -> -100 | K40: =IF(J40>-100,J40+0.9,J40) -> -100 | L40: 16.9 | P40: 16.15 | R40: 0.75 | S40: 0 | T40: 16.525
A41: 12 | F41: B | J41: =DerivingPerfReq(L41:Q41) -> -100 | K41: =IF(J41>-100,J41+0.9,J41) -> -100 | P41: 16.15 | R41: 0 | S41: 0 | T41: 16.15

Sheet PUSCH requirement 8Rx
A1: case | B1: Tx | C1: SCS | D1: Waveform | E1: BW | F1: Mapping Type | G1: Propagation condition | H1: MCS | I1: Additional DM-RS position | J1: 38.104 req | K1: 38.141-1/2 req | L1: Samsung | N1: Nokia | P1: Ericsson | R1: SPAN | T1: AVERAGE
L2: ideal | M2: Impairment | N2: ideal | O2: Impairment | P2: ideal | Q2: Impairment | R2: Ideal | S2: Impairment | T2: Ideal | U2: Impairment
A3: 1 | B3: 3 | C3: 15kHz | D3: CP-OFDM | E3: 5MHz | F3: A | G3: TDLB100-400 | H3: 2 | I3: pos1 | J3: =DerivingPerfReq(L3:Q3) -> -100 | K3: =IF(J3>-100,J3+0.9,J3) -> -100 | N3: -6.33 | P3: -5.99 | R3: =MAX(L3,N3,P3)-MIN(L3,N3,P3) -> 0.34 | S3: =MAX(M24,O24,Q24) -> 0 | T3: =AVERAGE(L3,N3,P3) -> -6.16 | U3: =AVERAGE(M3,O3,Q3) -> 
A4: 2 | F4: B | J4: =DerivingPerfReq(L4:Q4) -> -100 | K4: =IF(J4>-100,J4+0.9,J4) -> -100 | N4: -6.16 | P4: -5.88 | R4: =MAX(L4,N4,P4)-MIN(L4,N4,P4) -> 0.28 | S4: =MAX(M25,O25,Q25) -> 0 | T4: =AVERAGE(L4,N4,P4) -> -6.02
A6: 3 | B6: 3 | C6: 15kHz | D6: CP-OFDM | E6: 5MHz | F6: A | G6: TDLC300-100 | H6: 16 | I6: pos1 | J6: =DerivingPerfReq(L6:Q6) -> -100 | K6: =IF(J6>-100,J6+0.9,J6) -> -100 | N6: 4.09 | P6: 7.13 | R6: 3.04 | S6: =MAX(M27,O27,Q27) -> 0 | T6: 5.61
A7: 4 | F7: B | J7: =DerivingPerfReq(L7:Q7) -> -100 | K7: =IF(J7>-100,J7+0.9,J7) -> -100 | N7: 4.12 | P7: 7.13 | R7: 3.01 | S7: =MAX(M28,O28,Q28) -> 0 | T7: 5.625
A9: 5 | B9: 3 | C9: 15kHz | D9: CP-OFDM | E9: 5MHz | F9: A | G9: TDLA30-10 | H9: 20 | I9: pos1 | J9: =DerivingPerfReq(L9:Q9) -> -100 | K9: =IF(J9>-100,J9+0.9,J9) -> -100 | N9: 6.39 | P9: 9.08 | R9: 2.69 | S9: =MAX(M30,O30,Q30) -> 0 | T9: 7.735
A10: 6 | F10: B | J10: =DerivingPerfReq(L10:Q10) -> -100 | K10: =IF(J10>-100,J10+0.9,J10) -> -100 | N10: 6.54 | P10: 9.08 | R10: 2.54 | S10: =MAX(M31,O31,Q31) -> 0 | T10: 7.81
A12: 13 | B12: 3 | C12: 15kHz | D12: CP-OFDM | E12: 50MHz | F12: A | G12: TDLB100-400 | H12: 2 | I12: pos1 | J12: =DerivingPerfReq(L12:Q12) -> -100 | K12: =IF(J12>-100,J12+0.9,J12) -> -100 | N12: -5.82 | P12: -6.29 | R12: 0.47 | S12: =MAX(M33,O33,Q33) -> 0 | T12: -6.055
A13: 14 | F13: B | J13: =DerivingPerfReq(L13:Q13) -> -100 | K13: =IF(J13>-100,J13+0.9,J13) -> -100 | N13: -5.77 | P13: -5.95 | R13: 0.18 | S13: =MAX(M34,O34,Q34) -> 0 | T13: -5.86
A15: 15 | B15: 3 | C15: 15kHz | D15: CP-OFDM | E15: 50MHz | F15: A | G15: TDLC300-100 | H15: 16 | I15: pos1 | J15: =DerivingPerfReq(L15:Q15) -> -100 | K15: =IF(J15>-100,J15+0.9,J15) -> -100 | N15: 4.35 | P15: 7.33 | R15: 2.98 | S15: =MAX(M36,O36,Q36) -> 0 | T15: 5.84
A16: 16 | F16: B | J16: =DerivingPerfReq(L16:Q16) -> -100 | K16: =IF(J16>-100,J16+0.9,J16) -> -100 | N16: 4.36 | P16: 7.35 | R16: 2.99 | S16: =MAX(M37,O37,Q37) -> 0 | T16: 5.855
A18: 32 | F18: B | J18: =DerivingPerfReq(L18:Q18) -> -100 | R18: 0 | S18: =MAX(M39,O39,Q39) -> 0
A19: 17 | B19: 3 | C19: 15kHz | D19: CP-OFDM | E19: 50MHz | F19: A | G19: TDLA30-10 | H19: 20 | I19: pos1 | J19: =DerivingPerfReq(L19:Q19) -> -100 | K19: =IF(J19>-100,J19+0.9,J19) -> -100 | N19: 7.18 | P19: 9.75 | R19: 2.57 | S19: =MAX(M40,O40,Q40) -> 0 | T19: 8.465
A20: 18 | F20: B | J20: =DerivingPerfReq(L20:Q20) -> -100 | K20: =IF(J20>-100,J20+0.9,J20) -> -100 | N20: 7.25 | P20: 9.75 | R20: 2.5 | S20: =MAX(M41,O41,Q41) -> 0 | T20: 8.5
A22: case | B22: Tx | C22: SCS | D22: Waveform | E22: BW | F22: Mapping Type | G22: Propagation condition | H22: MCS | I22: Additional DM-RS position | J22: 38.104 req | K22: 38.141-1/2 req | L22: Samsung | N22: Nokia | P22: Ericsson | R22: SPAN | T22: AVERAGE
L23: ideal | M23: Impairment | N23: ideal | O23: Impairment | P23: ideal | Q23: Impairment | R23: Ideal | S23: Impairment | T23: Ideal | U23: Impairment
A24: 1 | B24: 3 | C24: 30kHz | D24: CP-OFDM | E24: 10MHz | F24: A | G24: TDLB100-400 | H24: 2 | I24: pos1 | J24: =DerivingPerfReq(L24:Q24) -> -100 | K24: =IF(J24>-100,J24+0.9,J24) -> -100 | P24: -5.88 | R24: =MAX(L24,N24,P24)-MIN(L24,N24,P24) -> 0 | S24: =MAX(M45,O45,Q45) -> 0 | T24: =AVERAGE(L24,N24,P24) -> -5.88 | U24: =AVERAGE(M24,O24,Q24) -> 
A25: 2 | F25: B | J25: =DerivingPerfReq(L25:Q25) -> -100 | K25: =IF(J25>-100,J25+0.9,J25) -> -100 | P25: -5.85 | R25: =MAX(L25,N25,P25)-MIN(L25,N25,P25) -> 0 | S25: =MAX(M46,O46,Q46) -> 0 | T25: =AVERAGE(L25,N25,P25) -> -5.85
A27: 3 | B27: 3 | C27: 30kHz | D27: CP-OFDM | E27: 10MHz | F27: A | G27: TDLC300-100 | H27: 16 | I27: pos1 | J27: =DerivingPerfReq(L27:Q27) -> -100 | K27: =IF(J27>-100,J27+0.9,J27) -> -100 | P27: 7.25 | R27: 0 | S27: =MAX(M48,O48,Q48) -> 0 | T27: 7.25
A28: 4 | F28: B | J28: =DerivingPerfReq(L28:Q28) -> -100 | K28: =IF(J28>-100,J28+0.9,J28) -> -100 | P28: 7.28 | R28: 0 | S28: =MAX(M49,O49,Q49) -> 0 | T28: 7.28
A30: 5 | B30: 3 | C30: 30kHz | D30: CP-OFDM | E30: 10MHz | F30: A | G30: TDLA30-10 | H30: 20 | I30: pos1 | J30: =DerivingPerfReq(L30:Q30) -> -100 | K30: =IF(J30>-100,J30+0.9,J30) -> -100 | P30: 9.24 | R30: 0 | S30: =MAX(M51,O51,Q51) -> 0 | T30: 9.24
A31: 6 | F31: B | J31: =DerivingPerfReq(L31:Q31) -> -100 | K31: =IF(J31>-100,J31+0.9,J31) -> -100 | P31: 9.24 | R31: 0 | S31: =MAX(M52,O52,Q52) -> 0 | T31: 9.24
A33: 13 | B33: 3 | C33: 30kHz | D33: CP-OFDM | E33: 100MHz | F33: A | G33: TDLB100-400 | H33: 2 | I33: pos1 | J33: =DerivingPerfReq(L33:Q33) -> -100 | K33: =IF(J33>-100,J33+0.9,J33) -> -100 | P33: -5.94 | R33: 0 | S33: =MAX(M64,O64,Q64) -> 0 | T33: -5.94
A34: 14 | F34: B | J34: =DerivingPerfReq(L34:Q34) -> -100 | K34: =IF(J34>-100,J34+0.9,J34) -> -100 | P34: -6.38 | R34: 0 | S34: 0 | T34: -6.38
A36: 15 | B36: 3 | C36: 30kHz | D36: CP-OFDM | E36: 100MHz | F36: A | G36: TDLC300-100 | H36: 16 | I36: pos1 | J36: =DerivingPerfReq(L36:Q36) -> -100 | K36: =IF(J36>-100,J36+0.9,J36) -> -100 | P36: 7.61 | R36: 0 | S36: 0 | T36: 7.61
A37: 16 | F37: B | J37: =DerivingPerfReq(L37:Q37) -> -100 | K37: =IF(J37>-100,J37+0.9,J37) -> -100 | P37: 7.67 | R37: 0 | S37: 0 | T37: 7.67
A39: 32 | F39: B | J39: =DerivingPerfReq(L39:Q39) -> -100 | R39: 0 | S39: 0
A40: 17 | B40: 3 | C40: 30kHz | D40: CP-OFDM | E40: 100MHz | F40: A | G40: TDLA30-10 | H40: 20 | I40: pos1 | J40: =DerivingPerfReq(L40:Q40) -> -100 | K40: =IF(J40>-100,J40+0.9,J40) -> -100 | P40: 9.94 | R40: 0 | S40: 0 | T40: 9.94
A41: 18 | F41: B | J41: =DerivingPerfReq(L41:Q41) -> -100 | K41: =IF(J41>-100,J41+0.9,J41) -> -100 | P41: 9.94 | R41: 0 | S41: 0 | T41: 9.94
